Workbook

Sheet Cálculos
C1: Aplicación de la función SQRT ET MAX (según Zorraquino, 2004)(1)
B2: Rellenar solamente los números en azul: siempre C4 y C5; y J4 ó (J12 a J18) según el cálculo deseado
I3: Introducir el dato en J4 y confirmar la entrada
B4: media | C4: 148.7 | G4: A partir del valor | I4: x= | J4: 400 | K4: ––>> | L4: F(x)= | M4: =EXP(-k*(1+SQRT(alfa*x))*EXP(-SQRT(alfa*x))) -> 0.988704027
B5: desv típica | C5: 73.5 | G5: calcular el retorno | L5: Probabilidad de que se supere x= | M5: =1-M4 -> 0.01129597303
B6: Cv | C6: =desv/med -> 0.4942837929 | L6: Periodo de retorno= | M6: =1/M5 -> 88.52712357 | N6: años
G10: A partir del retorno
G11: calcular el valor | J11: Retorno | L11: x
J12: 5
J13: 10
J14: 25
J15: 50
J16: 100
J17: 210
J18: 500
E27: j | F27: aj * (ln(Cv))j | I27: Cv : | J27: 0.99 a 0.70 | K27: 0.70 a 0.30 | L27: 0.30 a 0.19
E28: 0 | F28: =IF(Cv<0.3,L28*(LN(Cv))^E28,IF(Cv<0.7,K28*(LN(Cv))^E28,J28*(LN(Cv))^E28)) -> 1.801512523 | I28: a0 | J28: 1.318614521 | K28: 1.801512523 | L28: -1765.864939
E29: 1 | F29: =IF(Cv<0.3,L29*(LN(Cv))^E29,IF(Cv<0.7,K29*(LN(Cv))^E29,J29*(LN(Cv))^E29)) -> -1.743124135 | I29: a1 | J29: -3.164627686 | K29: 2.473760587 | L29: -7240.59199
E30: 2 | F30: =IF(Cv<0.3,L30*(LN(Cv))^E30,IF(Cv<0.7,K30*(LN(Cv))^E30,J30*(LN(Cv))^E30)) -> 11.69624716 | I30: a2 | J30: -1.595524397 | K30: 23.55620019 | L30: -11785.55015
E31: 3 | F31: -17.47876251 | I31: a3 | J31: -6.269110853 | K31: 49.9572738 | L31: -9537.985174
E32: 4 | F32: 14.73692271 | I32: a4 | J32: -11.31766964 | K32: 59.77563587 | L32: -3834.341011
E33: 5 | F33: -6.201310334 | I33: a5 | J33: -22.697555 | K33: 35.69687628 | L33: -612.6777022
E34: 6 | F34: 1.041201083 | I34: a6 | J34: -22.06634469 | K34: 8.505712707 | L34: 0
E35: Suma...... | F35: =SUM(F28:F34) -> 3.852686498 | G35: =ln(k)
E36: k = | F36: =EXP(ln_k) -> 47.11947971
E38: j | F38: bj * (ln(k))j | I38: Cv : | J38: 0.99 a 0.70 | K38: 0.70 a 0.30 | L38: 0.30 a 0.19
E39: 0 | F39: =IF(Cv<0.3,L39*ln_k^E39,IF(Cv<0.7,K39*ln_k^E39,J39*ln_k^E39)) -> 2.342696882 | I39: b0 | J39: 2.307318543 | K39: 2.342696882 | L39: -0.931508488
E40: 1 | F40: -0.5770717074 | I40: b1 | J40: -0.136673609 | K40: -0.149784237 | L40: 2.156709166
E41: 2 | F41: -1.474106837 | I41: b2 | J41: -0.075035627 | K41: -0.099311975 | L41: -0.779770335
E42: 3 | F42: 0.1969561469 | I42: b3 | J42: -0.013464311 | K42: 0.003444122 | L42: 0.112962273
E43: 4 | F43: 0.2232949313 | I43: b4 | J43: 0.003228029 | K43: 0.001013501 | L43: -0.009340454
E44: 5 | F44: -0.1200323964 | I44: b5 | J44: 0.00052124 | K44: -0.00014141 | L44: 0.000411896
E45: 6 | F45: 0.01796257916 | I45: b6 | J45: -0.0001409 | K45: 5.49271e-06 | L45: -7.5371e-06
E46: Suma...... | F46: =SUM(F39:F45) -> 0.6096995988 | G46: =ln(I1)
F47: =EXP(F46) -> 1.839878614 | G47: =I1
E49: a= | F49: =k*I_1/(1-EXP(-k))/2/med -> 0.2915068024
I55: =148*6 -> 888

Sheet Fórmulas
